bitfinex/quotes_ETHUSD_20250730
["timestamp","ask_amount","ask_price","bid_price","bid_amount"]
[1753885486272,4.108,3785.7,3785.6,1.0045]
[1753885486477,4.108,3785.7,3785.6,1.0259]
[1753885487774,4.108,3785.7,3785.3,0.001]
[1753885488086,0.132,3785.4,3785.3,0.001]
[1753885488299,0.132,3785.4,3785.3,0.5705]
[1753885489735,0.132,3785.4,3785.3,0.001]
[1753885489884,0.5782,3785.4,3785.3,0.001]
[1753885490085,1.10008,3785.4,3785.3,0.001]
[1753885490346,4.241,3785.4,3785.3,0.5705]
[1753885490637,4.241,3785.4,3785.3,1.8287]
[1753885490989,4.241,3785.4,3785.3,0.001]
[1753885491385,0.132,3785.4,3785.3,0.001]
[1753885491591,4.241,3785.4,3785.3,0.5705]
[1753885491856,4.241,3785.4,3785.3,1.0269]
[1753885492799,4.241,3785.4,3785.3,0.5705]
[1753885493018,0.132,3785.4,3785.3,1.0269]
[1753885493223,4.109,3785.4,3785.3,0.5705]
[1753885493424,4.5331,3785.4,3785.3,0.001]
[1753885493634,4.5331,3785.4,3785.1,0.04]
[1753885493635,8.8169,3785.4,3785.1,0.04]
[1753885493833,2.64186832,3785.2,3785.1,0.03499988]
[1753885493996,5.80029764,3785.2,3785.1,0.03499988]
[1753885494353,6.75266832,3785.2,3785.1,0.03499988]
[1753885494501,8.26069848,3785.2,3785.1,0.03499988]
[1753885494700,8.40810344,3785.2,3785.1,0.03499988]
[1753885495131,8.95810344,3785.2,3785.1,0.03499988]
[1753885495331,9.77840344,3785.2,3785.1,0.03499988]
[1753885495534,39.77840344,3785.2,3785.1,0.03499988]
[1753885495740,13.88740344,3785.2,3785.1,0.03499988]
[1753885496243,12.80480344,3785.2,3785.1,0.03499988]
[1753885496427,10.16293512,3785.2,3785.1,0.03499988]
[1753885496735,8.20870496,3785.2,3785.1,0.03499988]
[1753885496939,10.85057328,3785.2,3785.1,0.03499988]
[1753885497109,7.73777328,3785.2,3785.1,0.03499988]
[1753885497312,4.09970496,3785.2,3785.1,0.03499988]
[1753885497514,0.27932138,3785.2,3785.1,0.60449988]
[1753885497707,4.38832138,3785.2,3785.1,1.06089988]
[1753885498307,4.38832138,3785.2,3785.1,0.60449988]
[1753885498504,4.241,3785.2,3785.1,0.60449988]
[1753885499005,4.241,3785.2,3785.1,1.06089988]
[1753885499782,4.241,3785.2,3785.1,0.60449988]
[1753885500125,4.241,3785.2,3785.1,1.06089988]
[1753885500333,0.14736276,3785.2,3785.1,1.06089988]
[1753885500535,0.132,3785.6,3785.2,0.7803]
[1753885500763,4.25635536,3785.5,3785.3,1.0259]
[1753885500945,0.14735536,3785.4,3785.3,0.4564]
[1753885501149,0.17378468,3785.4,3785.1,0.03499988]
[1753885501462,0.132,3785.3,3785.2,1.0259]
[1753885501660,0.132,3785.7,3785.3,0.7803]
[1753885501862,4.109,3786.1,3785.6,0.9008]
[1753885502162,4.109,3786.1,3786.0,0.9008]
[1753885502463,4.35472035,3786.1,3786.0,1.3383]
[1753885502759,9.12438469,3787.8,3786.2,2.64110965]
[1753885502963,0.132,3786.9,3786.3,1.0259]
[1753885503185,4.11,3786.8,3786.4,1.1579]
[1753885503361,0.49142856,3786.7,3786.5,1.0259]
[1753885503568,0.24571428,3786.6,3786.5,0.5695]
[1753885503786,0.24571428,3786.7,3786.6,0.5695]
[1753885503928,4.109,3786.7,3786.6,3.21039156]
[1753885504128,6.35,3787.8,3786.7,0.7887]
[1753885504457,4.73274596,3787.7,3786.9,2.64067791]
[1753885504642,0.49174596,3787.6,3787.0,1.0259]
[1753885504844,0.8462,3787.4,3786.5,0.5695]
[1753885505170,0.8462,3787.4,3786.3,0.7674]
[1753885505171,0.132,3786.7,3786.3,0.7674]
[1753885505371,4.112,3786.6,3786.4,0.5695]
[1753885505876,4.112,3786.6,3786.5,0.5695]
[1753885506090,4.112,3786.6,3786.3,0.7674]
[1753885506236,0.132,3786.4,3786.3,0.7674]
[1753885506833,1.0026,3786.4,3785.5,0.797]
[1753885507047,0.132,3785.8,3785.1,0.96399988]
[1753885507246,4.112,3785.7,3785.1,0.96399988]
[1753885507597,2.64168329,3785.5,3785.1,0.03499988]
[1753885507739,0.132,3785.2,3785.1,0.03499988]
[1753885507944,4.245,3785.2,3785.1,0.03499988]
[1753885508151,4.83095196,3785.2,3785.1,0.03499988]
[1753885508378,5.84405196,3785.2,3785.1,0.03499988]
[1753885508587,5.81762264,3785.2,3785.1,0.03499988]
[1753885508878,5.25072264,3785.2,3785.1,0.03499988]
[1753885509050,4.80452264,3785.2,3785.1,0.03499988]
[1753885509254,3.0,3785.8,3785.1,0.60449988]
[1753885509436,0.132,3785.4,3785.1,0.60449988]
[1753885509641,0.02642932,3785.3,3785.1,0.60449988]
[1753885509984,4.112,3785.2,3785.1,0.60449988]
[1753885510369,4.112,3785.2,3785.1,0.03499988]
[1753885510553,4.53904293,3785.2,3785.1,0.03499988]
[1753885510761,5.96264293,3785.2,3785.1,0.03499988]
[1753885511298,12.17141125,3785.2,3785.1,0.03499988]
[1753885511447,12.72141125,3785.2,3785.1,0.03499988]
[1753885514043,8.04251125,3785.2,3785.1,0.03499988]
[1753885514244,12.72741125,3785.2,3785.1,0.03499988]
[1753885514991,42.72741125,3785.2,3785.1,0.03499988]
[1753885515548,42.65981125,3785.2,3785.1,0.03499988]
[1753885516087,12.65981125,3785.2,3785.1,0.03499988]
[1753885516301,42.65981125,3785.2,3785.1,0.03499988]
[1753885517799,42.63161125,3785.2,3785.1,0.03499988]
[1753885518305,43.02684808,3785.2,3785.1,0.03499988]
[1753885518500,43.02685114,3785.2,3785.1,0.03499988]
[1753885518850,13.02685114,3785.2,3785.1,0.03499988]
[1753885519218,43.02685114,3785.2,3785.1,0.03499988]
[1753885519496,43.16496426,3785.2,3785.1,1e-08]
[1753885519794,43.16496426,3785.2,3785.0,0.001]
[1753885519795,43.16496426,3785.2,3785.0,1e-08]
[1753885519958,37.03200792,3785.0,3784.9,1e-08]
[1753885520159,41.67524781,3785.0,3784.9,1e-08]
[1753885520355,142.67544781,3785.0,3784.9,1e-08]
[1753885521071,142.13274781,3785.0,3784.9,1e-08]
[1753885521270,142.67444781,3785.0,3784.9,1e-08]
[1753885521486,143.0988211,3785.0,3784.9,1e-08]
[1753885522293,142.80712048,3785.0,3784.9,1e-08]
[1753885522467,143.34882048,3785.0,3784.9,1e-08]
[1753885524299,143.10171849,3785.0,3784.9,1e-08]
[1753885524671,145.88671849,3785.0,3784.9,1e-08]
[1753885524871,146.13355887,3785.0,3784.9,1e-08]
[1753885525076,37.00221734,3784.7,3784.6,1e-08]
[1753885525279,41.82537324,3784.7,3784.6,1e-08]
[1753885525479,42.53066521,3784.7,3784.6,1e-08]
[1753885525683,42.82557324,3784.7,3784.6,1e-08]
[1753885525887,42.53066239,3784.7,3784.6,1e-08]
[1753885526097,43.07236239,3784.7,3784.6,1e-08]
[1753885526301,42.53066239,3784.7,3784.6,1e-08]
[1753885526795,43.07236239,3784.7,3784.6,1e-08]
[1753885527003,43.31808366,3784.7,3784.6,1e-08]
[1753885527297,43.31808698,3784.7,3784.6,1e-08]
[1753885527602,43.31799991,3784.7,3784.6,1e-08]
[1753885527802,38.20279991,3784.7,3784.6,1e-08]
[1753885527986,11.76679991,3784.7,3784.6,1e-08]
[1753885528188,11.52016239,3784.7,3784.6,1e-08]
[1753885529104,5.06894505,3784.7,3784.6,0.58190001]
[1753885529303,4.64190212,3784.7,3784.6,1.02780001]
[1753885529522,0.52690212,3784.7,3784.6,1.79790001]
[1753885529687,4.64190212,3784.7,3784.6,1.79790001]
[1753885530116,0.52690212,3784.7,3784.6,1.79790001]
[1753885530318,4.64190212,3784.7,3784.6,1.79790001]
[1753885530501,4.50990212,3784.7,3784.6,2.24193504]
[1753885530691,4.115,3784.7,3784.6,1.79790001]
[1753885531216,4.26280154,3784.7,3784.6,1.79790001]
[1753885531517,4.115,3784.7,3784.6,1.79790001]
[1753885536416,4.50998718,3784.7,3784.6,1.79790001]
[1753885537021,0.39498718,3784.7,3784.6,4.44018717]
[1753885537224,4.111,3785.2,3784.9,2.64206744]
[1753885537531,4.111,3785.3,3785.0,1.8579]
[1753885537691,4.111,3785.3,3785.0,4.49990084]
[1753885537888,4.111,3785.3,3785.1,3.66968666]
[1753885538089,4.111,3785.3,3785.2,0.9312]
[1753885538287,0.002,3785.6,3785.2,1.959]
[1753885538587,0.002,3785.6,3785.4,0.813]
[1753885538792,0.002,3785.6,3785.5,0.132]
[1753885539086,0.002,3785.6,3785.5,1.1598]
[1753885541022,0.002,3785.6,3785.5,1.35708]
[1753885541226,0.002,3785.6,3785.5,4.83385554]
[1753885541626,0.002,3785.6,3785.5,4.80743896]
[1753885542360,0.002,3785.6,3785.5,7.83385554]
[1753885542557,0.002,3785.6,3785.5,7.80743896]
[1753885543351,0.002,3786.0,3785.9,2.64137985]
[1753885543514,0.002,3786.0,3785.9,3.95776424]
[1753885543728,0.002,3786.0,3785.9,5.11756424]
[1753885547857,0.002,3786.0,3785.9,4.08976424]
[1753885548011,0.002,3786.0,3785.9,4.54027985]
[1753885549053,0.002,3786.0,3785.9,4.56669364]
[1753885549248,0.002,3786.0,3785.9,8.64927985]
[1753885550645,0.002,3786.0,3785.9,11.64927985]
[1753885550833,0.002,3786.0,3785.9,13.078354]
[1753885551445,1e-08,3786.0,3785.9,13.628354]
[1753885554145,1e-08,3786.0,3785.9,13.077354]
[1753885554912,1e-08,3786.0,3785.9,8.969354]
[1753885555108,1e-08,3786.0,3785.9,13.077354]
[1753885556138,1e-08,3786.0,3785.9,8.540854]
[1753885556336,1e-08,3786.0,3785.9,13.077354]
[1753885558158,1e-08,3786.0,3785.9,8.969354]
[1753885558352,1e-08,3786.0,3785.9,13.077354]
[1753885558557,0.002,3786.4,3786.3,3.41880081]
[1753885558767,0.002,3786.4,3786.3,8.42334108]
[1753885558918,0.002,3786.4,3786.3,8.39693008]
[1753885559119,0.002,3786.4,3786.3,9.37573008]
[1753885560328,0.002,3786.4,3786.3,5.26773008]
[1753885560654,0.002,3786.4,3785.9,2.64131515]
[1753885560655,0.4651,3786.4,3785.9,2.64131515]
[1753885560818,1.0292,3786.3,3785.6,4.107]
[1753885561021,1.0292,3786.3,3785.5,4.107]
[1753885561247,1.0292,3786.2,3785.5,4.107]
[1753885561415,1.0292,3786.1,3785.5,4.107]
[1753885561732,0.002,3786.4,3785.5,4.107]
[1753885561733,0.002,3786.4,3786.0,2.64130099]
[1753885562127,0.002,3786.4,3785.8,2.64138381]
[1753885562128,1.0292,3786.3,3785.8,4.107]
[1753885562345,1.0292,3786.2,3785.8,4.107]
[1753885562547,0.002,3786.4,3785.8,4.107]
[1753885562743,1.0292,3786.1,3785.8,4.107]
[1753885562943,0.4631,3786.0,3785.8,4.107]
[1753885563348,0.002,3786.4,3785.8,4.107]
[1753885563550,0.002,3786.4,3785.9,0.5503]
[1753885563727,0.002,3786.4,3785.8,4.866614]
[1753885564062,0.002,3786.4,3785.9,2.64137394]
[1753885564437,1.0292,3786.3,3785.8,4.866614]
[1753885564623,0.002,3786.4,3785.5,3.48914]
[1753885564624,1.8034,3786.2,3785.5,7.107]
[1753885564935,0.4631,3786.1,3785.5,9.74861354]
[1753885565130,0.4631,3786.1,3785.5,7.107]
[1753885565331,0.4631,3786.1,3784.9,0.4285]
[1753885565332,0.8219,3785.9,3784.6,0.83450001]
[1753885565665,0.773,3785.3,3784.6,1e-08]
[1753885566023,7.47042785,3785.3,3784.6,1e-08]
[1753885566225,4.8022,3785.3,3784.6,1e-08]
[1753885566657,7.44399853,3785.3,3784.6,1e-08]
[1753885566854,6.22146671,3785.3,3784.6,1e-08]
[1753885567647,8.9092,3785.3,3784.6,1e-08]
[1753885568480,4.8022,3785.3,3784.6,1e-08]
[1753885568684,4.9342,3785.3,3784.6,1e-08]
[1753885569435,1.3681,3785.3,3784.6,1e-08]
[1753885569642,1.9342,3785.3,3784.7,0.132]
[1753885570486,1.9342,3785.3,3784.6,0.13200001]
[1753885570626,2.86484932,3785.3,3784.6,1e-08]
[1753885570832,9.42512822,3785.3,3784.6,1e-08]
[1753885571058,6.23332969,3785.3,3784.6,1e-08]
[1753885571366,9.94642,3785.3,3784.6,1e-08]
[1753885571574,5.83842,3785.3,3784.6,1e-08]
[1753885571864,9.94642,3785.3,3784.6,1e-08]
[1753885572750,8.4761,3785.3,3784.6,1e-08]
[1753885572950,8.4761,3785.3,3784.6,0.55030001]
[1753885573461,9.0422,3785.3,3784.6,1e-08]
[1753885573649,11.68399853,3785.3,3784.6,1e-08]
[1753885574051,12.23399853,3785.3,3784.6,1e-08]
[1753885575871,8.12599853,3785.3,3784.6,1e-08]
[1753885576074,6.0241711,3785.3,3784.6,1e-08]
[1753885576243,6.0241711,3785.3,3784.6,0.55030001]
[1753885576244,4.3681,3785.3,3784.6,0.55030001]
[1753885576444,8.013,3785.3,3784.6,0.55030001]
[1753885576651,8.013,3785.3,3784.6,1e-08]
[1753885576847,0.132,3785.3,3784.8,0.5642]
[1753885577047,0.132,3785.3,3784.6,1e-08]
[1753885577270,0.13044653,3787.0,3785.2,1.9352]
[1753885577271,0.833,3786.5,3785.2,1.9352]
[1753885577471,4.241,3786.2,3785.3,1.19462]
[1753885577678,4.5782,3786.2,3785.4,0.132]
[1753885577969,0.132,3785.8,3785.2,0.133]
[1753885578132,0.132,3785.5,3785.2,0.001]
[1753885578350,5.44232932,3785.7,3785.2,0.001]
[1753885578351,0.132,3785.3,3785.2,0.001]
[1753885579464,0.6012,3785.3,3785.2,0.001]
[1753885579660,0.132,3785.3,3785.2,0.001]
[1753885580974,0.8053,3786.0,3785.2,1.0021]
[1753885581154,0.132,3785.8,3785.2,0.5699]
[1753885581355,0.02642932,3785.7,3785.2,0.133]
[1753885581554,0.132,3785.4,3785.2,0.001]
[1753885581757,0.84372932,3785.3,3785.2,0.001]
[1753885581988,1.84632932,3785.3,3785.2,0.001]
[1753885582489,1.2865,3785.3,3785.2,0.001]
[1753885583258,5.3995,3785.3,3785.2,0.001]
[1753885583678,1.2865,3785.3,3785.2,0.001]
[1753885583989,4.9303,3785.3,3785.2,0.001]
[1753885584287,0.8173,3785.3,3785.2,0.001]
[1753885584466,5.3995,3785.3,3785.2,0.001]
[1753885585288,1.2865,3785.3,3785.2,0.001]
[1753885585586,5.3985,3785.3,3785.2,0.001]
[1753885585770,8.04029853,3785.3,3785.2,0.001]
[1753885585967,12.89828997,3785.3,3785.2,0.001]
[1753885586168,13.44828997,3785.3,3785.2,0.001]
[1753885586970,8.25288997,3785.3,3785.2,0.001]
[1753885587165,12.36288997,3785.3,3785.2,0.001]
[1753885587367,12.89628997,3785.3,3785.2,0.001]
[1753885587693,9.72109144,3785.3,3785.2,0.001]
[1753885587896,12.36288997,3785.3,3785.2,0.001]
[1753885588077,12.89528997,3785.3,3785.2,0.001]
[1753885588894,8.25288997,3785.3,3785.2,0.001]
[1753885589092,12.89528997,3785.3,3785.2,0.001]
[1753885590072,13.44528997,3785.3,3785.2,0.001]
[1753885590687,13.83979443,3785.3,3785.2,0.001]
[1753885592164,13.83984587,3785.3,3785.2,0.001]
[1753885592505,43.83984587,3785.3,3785.2,0.001]
[1753885592678,44.08660702,3785.3,3785.2,0.001]
[1753885593001,3.19207772,3784.9,3784.8,0.001]
[1753885593203,12.43863942,3784.9,3784.8,0.001]
[1753885593414,13.44123942,3784.9,3784.8,0.001]
[1753885593987,12.90783942,3784.9,3784.8,0.001]
[1753885594188,13.68821178,3784.9,3784.8,0.001]
[1753885594786,12.13561178,3784.9,3784.8,0.001]
[1753885595100,11.88863942,3784.9,3784.8,0.001]
[1753885595618,11.88918287,3784.9,3784.8,0.001]
[1753885596123,7.78018287,3784.9,3784.8,0.001]
[1753885596321,11.88918287,3784.9,3784.8,0.001]
[1753885597986,13.44178287,3784.9,3784.8,0.001]
[1753885598332,43.68892407,3784.9,3784.8,1e-08]
[1753885598490,43.68892407,3784.9,3784.6,1e-08]
[1753885598491,37.03851734,3784.7,3784.6,1e-08]
[1753885598845,37.03851734,3784.7,3784.1,1e-08]
[1753885598846,37.03886646,3784.2,3784.1,1e-08]
[1753885599000,18.14245252,3784.2,3784.1,1e-08]
[1753885599201,19.27705252,3784.2,3784.1,1e-08]
[1753885599395,49.27705252,3784.2,3784.1,1e-08]
[1753885599790,45.16701059,3784.2,3784.1,1e-08]
[1753885599992,45.69151712,3784.2,3784.1,1e-08]
[1753885600287,49.80151712,3784.2,3784.1,1e-08]
[1753885600721,15.15811712,3784.2,3784.1,1e-08]
[1753885600935,19.26811712,3784.2,3784.1,1e-08]
[1753885602039,18.79891712,3784.2,3784.1,1e-08]
[1753885602239,18.55176408,3784.2,3784.1,1e-08]
[1753885602423,14.44176408,3784.2,3784.1,1e-08]
[1753885602636,8.1009058,3784.2,3784.1,1.00110001]
[1753885602935,0.132,3784.2,3784.1,1.00110001]
[1753885603138,4.242,3784.2,3784.1,1.00110001]
[1753885604679,0.132,3784.2,3784.1,1.00110001]
[1753885604849,4.242,3784.2,3784.1,1.00110001]
[1753885604997,4.39016386,3784.2,3784.1,1.00110001]
[1753885605204,4.63807598,3784.2,3784.1,1.00110001]
[1753885605510,4.50607598,3784.2,3784.1,1.00110001]
[1753885605859,4.25914614,3784.2,3784.1,1.84570001]
[1753885606199,4.111,3784.2,3784.1,1.84570001]
[1753885607331,4.25914152,3784.2,3784.1,1.84570001]
[1753885608133,0.132,3784.4,3784.1,1.84570001]
[1753885608298,4.25813752,3784.3,3784.2,1.0101]
[1753885608532,4.25813752,3784.3,3784.2,0.5424]
[1753885608871,4.50507865,3784.3,3784.1,1e-08]
[1753885609047,0.14813752,3784.2,3784.1,1e-08]
[1753885609246,0.28013752,3784.2,3784.1,1e-08]
[1753885609425,0.28013752,3784.2,3784.1,0.46770001]
[1753885609626,0.28013752,3784.2,3784.1,1.01010001]
[1753885609627,4.39013752,3784.2,3784.1,1.01010001]
[1753885609827,4.242,3784.2,3784.1,1.01010001]
[1753885611234,3.0,3785.0,3784.1,1.01010001]
[1753885611435,7.1945,3785.2,3784.1,1.01010001]
[1753885611436,0.132,3784.4,3784.2,0.5424]
[1753885611744,4.11,3784.3,3784.2,0.5424]
[1753885612067,0.132,3784.4,3784.3,0.7854]
[1753885612277,0.24710261,3785.0,3784.3,0.7854]
[1753885612450,6.352,3785.2,3784.4,3.65250403]
[1753885612650,0.132,3784.8,3784.5,1.0101]
[1753885612853,0.132,3784.8,3784.6,1.0101]
[1753885613077,0.132,3784.8,3784.4,0.4464329]
[1753885613368,0.132,3784.8,3784.7,1.0101]
[1753885615146,0.132,3785.0,3784.8,0.7631]
[1753885615365,4.11,3784.9,3784.8,1.3055]
[1753885615749,0.132,3785.0,3784.8,1.7732]
[1753885615943,0.132,3785.0,3784.5,0.132]
[1753885615944,5.37842932,3784.9,3784.2,0.5424]
[1753885616188,5.37842932,3784.9,3784.0,0.7631]
[1753885616189,0.132,3784.6,3784.0,0.7631]
[1753885616490,0.132,3784.3,3784.0,1.3055]
[1753885616705,0.132,3784.3,3784.2,0.5424]
[1753885616999,4.109,3784.3,3784.2,1.0101]
[1753885617984,4.109,3784.3,3784.2,0.5424]
[1753885618344,4.109,3784.3,3784.2,1.0101]
[1753885618748,4.109,3784.3,3784.0,0.7631]
[1753885618948,4.241,3784.3,3783.9,0.5424]
[1753885619370,4.241,3784.3,3783.7,1.3919]
[1753885619704,0.132,3784.3,3784.2,0.5424]
[1753885619869,4.241,3784.3,3784.2,0.5424]
[1753885620278,5.1177,3784.3,3784.1,1e-08]
[1753885620658,4.45576646,3784.2,3784.1,1e-08]
[1753885620861,4.48219578,3784.2,3784.1,1e-08]
[1753885621068,4.45576646,3784.2,3784.1,1e-08]
[1753885621794,0.132,3784.3,3784.1,0.54240001]
[1753885622082,4.109,3784.2,3784.1,1e-08]
[1753885622283,8.68823675,3784.2,3784.1,1e-08]
[1753885622480,9.18610743,3784.2,3784.1,1e-08]
[1753885622883,12.73610743,3784.2,3784.1,1e-08]
[1753885623486,5.98454097,3784.2,3784.1,1e-08]
[1753885623691,9.56924097,3784.2,3784.1,1e-08]
[1753885623900,12.21180743,3784.2,3784.1,1e-08]
[1753885624104,12.60754931,3784.2,3784.1,1e-08]
[1753885624428,13.13184931,3784.2,3784.1,1e-08]
[1753885624597,9.02284931,3784.2,3784.1,1e-08]
[1753885624799,8.19308013,3784.2,3784.1,1e-08]
[1753885625006,8.19407811,3784.2,3784.1,1e-08]
[1753885625206,7.50573714,3784.2,3784.1,1e-08]
[1753885626024,10.1483036,3784.2,3784.1,1e-08]
[1753885626224,6.0383036,3784.2,3784.1,1e-08]
[1753885626727,10.1483036,3784.2,3784.1,1e-08]
[1753885627023,10.6009036,3784.2,3784.1,1e-08]
[1753885627233,7.95833714,3784.2,3784.1,1e-08]
[1753885627411,7.50573714,3784.2,3784.1,1e-08]
[1753885627609,0.002,3784.3,3784.2,0.8403]
[1753885627815,0.002,3784.3,3784.2,1.8504]
[1753885628419,4.112,3784.3,3784.2,1.8504]
[1753885630012,4.112,3784.3,3784.2,2.03544]
[1753885630013,0.002,3784.3,3784.2,2.03544]
[1753885634513,0.002,3784.3,3784.2,4.67800646]
[1753885635230,0.002,3784.3,3784.2,2.03544]
[1753885635770,0.002,3784.3,3784.2,0.8403]
[1753885636747,0.002,3784.3,3784.2,1.3745]
[1753885637655,0.002,3784.3,3784.2,1.5065]
[1753885638891,0.002,3784.3,3784.2,4.14906646]
[1753885639187,0.002,3784.3,3784.2,4.61816646]
[1753885639397,0.002,3784.3,3784.2,2.70168519]
[1753885639770,0.002,3784.3,3784.2,1.9756]
[1753885641550,0.002,3784.3,3784.2,4.61816646]
[1753885641954,0.002,3784.3,3784.2,1.9756]
[1753885642387,0.002,3784.3,3784.2,4.61816646]
[1753885642888,0.002,3784.3,3784.2,4.64459212]
[1753885643092,0.002,3784.3,3784.2,5.37332007]
[1753885643244,0.002,3784.3,3784.2,5.28869441]
[1753885645515,0.002,3784.3,3784.2,0.9141]
[1753885645658,0.4382,3784.3,3784.1,1e-08]
[1753885645852,0.002,3784.3,3784.1,0.13200001]
[1753885646166,0.4362,3784.2,3784.1,1e-08]
[1753885646569,0.4362,3784.2,3784.1,0.00100001]
[1753885647356,1.16807,3784.2,3784.1,0.00100001]
[1753885647567,6.94263646,3784.2,3784.1,0.00100001]
[1753885647895,7.75113646,3784.2,3784.1,0.00100001]
[1753885648468,8.30113646,3784.2,3784.1,0.00100001]
[1753885649631,5.10857,3784.2,3784.1,0.00100001]
[1753885649789,8.67657,3784.2,3784.1,0.00100001]
[1753885650189,9.21657,3784.2,3784.1,0.00100001]
[1753885650391,11.85913646,3784.2,3784.1,0.00100001]
[1753885651123,9.21657,3784.2,3784.1,0.00100001]
[1753885651505,11.85913646,3784.2,3784.1,0.00100001]
[1753885651843,12.25485278,3784.2,3784.1,0.00100001]
[1753885652415,0.52771632,3784.2,3784.1,0.00100001]
[1753885652708,0.2473227,3784.2,3784.1,0.53520001]
[1753885653528,3.10519578,3784.2,3784.1,0.00100001]
[1753885653736,7.83808132,3784.2,3784.1,0.00100001]
[1753885654039,9.04608945,3784.2,3784.1,0.00100001]
[1753885654414,5.86352299,3784.2,3784.1,0.00100001]
[1753885654617,8.76351486,3784.2,3784.1,0.00100001]
[1753885655939,8.3679,3784.2,3784.1,0.00100001]
[1753885656634,11.55046646,3784.2,3784.1,0.00100001]
[1753885656823,11.94612031,3784.2,3784.1,0.00100001]
[1753885657530,12.49612031,3784.2,3784.1,0.00100001]
[1753885657727,14.02337721,3784.2,3784.1,0.00100001]
[1753885658413,12.93337721,3784.2,3784.1,0.00100001]
[1753885659308,12.78500354,3784.2,3784.1,0.00100001]
[1753885659958,13.47333243,3784.2,3784.1,0.00100001]
[1753885660100,14.02333243,3784.2,3784.1,0.00100001]
[1753885660306,44.02333243,3784.2,3784.1,0.00100001]
[1753885660700,44.02333243,3784.2,3784.1,1e-08]
[1753885660701,46.80933243,3784.2,3784.1,1e-08]
[1753885661173,14.02333243,3784.2,3784.1,1e-08]
[1753885661333,44.02333243,3784.2,3784.1,1e-08]
[1753885661736,44.27049406,3784.2,3784.1,1e-08]
[1753885662164,47.05649406,3784.2,3784.1,1e-08]
[1753885662463,44.2704108,3784.2,3784.1,1e-08]
[1753885662680,44.2704107,3784.2,3784.1,1e-08]
[1753885663179,47.0564107,3784.2,3784.1,1e-08]
[1753885664660,17.05628534,3784.2,3784.1,1e-08]
[1753885665065,47.05628534,3784.2,3784.1,1e-08]
[1753885665236,34.01646496,3783.2,3783.1,0.04]
[1753885665560,41.25646496,3783.2,3783.1,0.04]
[1753885665934,42.23266496,3783.2,3783.1,0.04]
[1753885666150,7.58466496,3783.2,3783.1,0.04]
[1753885666356,41.69266496,3783.2,3783.1,0.04]
[1753885666541,43.21992186,3783.2,3783.1,0.04]
[1753885666743,42.78372186,3783.2,3783.1,0.04]
[1753885666945,43.16344002,3783.2,3783.1,0.04]
[1753885667140,42.78372186,3783.2,3783.1,0.04]
[1753885667345,43.49259127,3783.2,3783.1,0.04]
[1753885667567,43.64065957,3783.2,3783.1,0.04]
[1753885667795,0.52683771,3783.2,3783.1,0.04]
[1753885667928,0.4621,3784.2,3783.1,0.04]
[1753885667929,0.7645,3784.1,3783.1,0.9926]
[1753885668249,3.0,3783.9,3783.2,1.7541]
[1753885668445,4.25705303,3783.8,3783.3,0.9526]
[1753885668653,0.14805303,3783.7,3783.4,0.9526]
[1753885668852,0.14805303,3783.6,3783.5,0.9526]
[1753885669480,4.25705303,3783.6,3783.5,1.90791]
[1753885669782,0.14805303,3783.6,3783.5,1.90791]
[1753885669983,4.109,3783.7,3783.5,1.90791]
[1753885670301,4.109,3783.9,3783.5,1.90791]
[1753885670444,4.109,3783.8,3783.6,0.9526]
[1753885670640,4.109,3783.8,3783.5,0.95531]
[1753885670902,4.109,3783.8,3783.7,0.9526]
[1753885674614,4.109,3783.8,3783.7,1.143391]
[1753885675206,4.108,3784.1,3783.8,0.7963]
[1753885675491,4.108,3784.1,3783.9,0.9526]
[1753885675667,4.108,3784.1,3784.0,0.9526]
[1753885676486,0.002,3784.2,3784.1,0.8162]
[1753885676684,0.002,3784.2,3784.1,1.79522636]
[1753885676862,0.002,3784.2,3784.1,1.7688]
[1753885678389,0.002,3784.2,3783.8,1.3417]
[1753885678592,0.134,3784.2,3783.8,1.3417]
[1753885678803,0.134,3784.2,3783.9,0.512]
[1753885679485,0.134,3784.2,3784.0,0.9526]
[1753885679658,0.134,3784.2,3784.0,0.512]
[1753885679857,0.134,3784.2,3784.1,0.512]
[1753885680306,0.134,3784.2,3783.9,0.4406]
[1753885680465,0.134,3784.2,3783.8,0.8297]
[1753885680803,0.134,3784.2,3783.9,0.512]
[1753885680957,0.002,3784.2,3784.0,2.64268934]
[1753885681304,0.002,3784.2,3784.1,7.50403629]
[1753885681455,0.002,3784.6,3784.5,2.64235698]
[1753885681657,0.002,3784.6,3784.5,6.44558054]
[1753885681911,0.002,3784.6,3784.5,7.50375698]
[1753885682061,0.002,3784.6,3784.5,8.78263338]
[1753885687464,0.002,3784.6,3784.5,12.88863338]
[1753885687665,0.002,3784.6,3784.5,9.2936764]
[1753885687861,0.002,3784.6,3784.5,5.1876764]
[1753885688063,0.002,3784.6,3784.5,0.9088]
[1753885690392,0.002,3784.6,3784.5,0.7768]
[1753885691301,0.002,3784.6,3784.2,0.774]
[1753885691503,0.002,3784.6,3784.2,1.418]
[1753885692381,0.002,3784.6,3784.3,0.9526]
[1753885692777,0.002,3784.6,3784.2,0.132]
[1753885692977,0.9576,3784.5,3783.8,0.7807]
[1753885693182,1.0896,3784.5,3783.9,0.132]
[1753885694193,0.132,3784.5,3783.9,0.132]
[1753885694398,0.132,3784.5,3784.0,0.512]
[1753885694582,0.132,3784.5,3784.1,0.9526]
[1753885694786,0.002,3784.6,3784.2,0.5726]
[1753885695090,0.002,3784.6,3784.2,0.132]
[1753885695295,0.002,3784.6,3784.2,0.644]
[1753885695496,0.002,3784.6,3784.3,0.512]